fUSD/lending_fUSD_20260612
["ID","MTS","AMOUNT","RATE_DAILY","PERIOD"]
[424919410,1781272240000,-45029.84925055,0.00012519,2]
[424919416,1781272240000,-449.92,0.00013232,2]
[424919417,1781272240000,-45029.84925055,0.00013479,2]
[424919415,1781272240000,-2000.0,0.00012941,2]
[424919419,1781272240000,-250.0,0.00013677,2]
[424919420,1781272240000,-500.0,0.00013698,2]
[424919421,1781272240000,-500.0,0.00013698,2]
[424919422,1781272240000,-500.0,0.00013698,2]
[424919425,1781272240000,-364.35142186,0.00013698,2]
[424919418,1781272240000,-161.56,0.00013668,2]
[424919432,1781272240000,-808.21,0.00013698,2]
[424919493,1781272241000,-669.46,0.00013698,2]
[424919492,1781272241000,-669.46,0.00013698,2]
[424919490,1781272241000,-669.46,0.00013698,2]
[424919489,1781272241000,-669.46,0.00013698,2]
[424919488,1781272241000,-669.46,0.00013698,2]
[424919487,1781272241000,-669.46,0.00013698,2]
[424919497,1781272241000,-500.0,0.00013698,2]
[424919483,1781272241000,-615.13,0.00013698,2]
[424919475,1781272241000,-615.01,0.00013698,2]
[424919484,1781272241000,-669.46,0.00013698,2]
[424919486,1781272241000,-669.46,0.00013698,2]
[424919491,1781272241000,-669.46,0.00013698,2]
[424919502,1781272241000,-500.0,0.00013698,2]
[424919495,1781272241000,-179.79776023,0.00013698,2]
[424919496,1781272241000,-500.0,0.00013698,2]
[424919498,1781272241000,-500.0,0.00013698,2]
[424919501,1781272241000,-500.0,0.00013698,2]
[424919503,1781272241000,-500.0,0.00013698,2]
[424919504,1781272241000,-500.0,0.00013698,2]
[424919505,1781272241000,-500.0,0.00013698,2]
[424919508,1781272241000,-500.0,0.00013698,2]
[424919507,1781272241000,-500.0,0.00013698,2]
[424919506,1781272241000,-500.0,0.00013698,2]
[424919481,1781272241000,-500.0,0.00013698,2]
[424919499,1781272241000,-500.0,0.00013698,2]
[424919494,1781272241000,-669.46,0.00013698,2]
[424919482,1781272241000,-615.01,0.00013698,2]
[424919463,1781272241000,-615.01,0.00013698,2]
[424919477,1781272241000,-615.01,0.00013698,2]
[424919509,1781272241000,-500.0,0.00013698,2]
[424919451,1781272241000,-808.21,0.00013698,2]
[424919453,1781272241000,-808.21,0.00013698,2]
[424919455,1781272241000,-808.21,0.00013698,2]
[424919452,1781272241000,-808.21,0.00013698,2]
[424919458,1781272241000,-808.33,0.00013698,2]
[424919459,1781272241000,-615.01,0.00013698,2]
[424919456,1781272241000,-808.21,0.00013698,2]
[424919461,1781272241000,-615.01,0.00013698,2]
[424919460,1781272241000,-615.01,0.00013698,2]
[424919471,1781272241000,-615.01,0.00013698,2]
[424919472,1781272241000,-615.01,0.00013698,2]
[424919485,1781272241000,-669.46,0.00013698,2]
[424919462,1781272241000,-615.01,0.00013698,2]
[424919469,1781272241000,-615.01,0.00013698,2]
[424919470,1781272241000,-615.01,0.00013698,2]
[424919468,1781272241000,-615.01,0.00013698,2]
[424919465,1781272241000,-615.01,0.00013698,2]
[424919467,1781272241000,-615.01,0.00013698,2]
[424919466,1781272241000,-615.01,0.00013698,2]
[424919474,1781272241000,-615.01,0.00013698,2]
[424919476,1781272241000,-615.01,0.00013698,2]
[424919473,1781272241000,-615.01,0.00013698,2]
[424919479,1781272241000,-615.01,0.00013698,2]
[424919478,1781272241000,-615.01,0.00013698,2]
[424919480,1781272241000,-615.01,0.00013698,2]
[424919464,1781272241000,-615.01,0.00013698,2]
[424919511,1781272241000,-500.0,0.00013698,2]
[424919457,1781272241000,-808.21,0.00013698,2]
[424919512,1781272241000,-500.0,0.00013698,2]
[424919546,1781272241000,-500.0,0.00013698,2]
[424919547,1781272241000,-500.0,0.00013698,2]
[424919549,1781272241000,-500.0,0.00013698,2]
[424919548,1781272241000,-500.0,0.00013698,2]
[424919550,1781272241000,-500.0,0.00013698,2]
[424919545,1781272241000,-500.0,0.00013698,2]
[424919556,1781272241000,-520.9,0.00013698,2]
[424919555,1781272241000,-520.9,0.00013698,2]
[424919551,1781272241000,-500.0,0.00013698,2]
[424919553,1781272241000,-500.0,0.00013698,2]
[424919554,1781272241000,-500.0,0.00013698,2]
[424919557,1781272241000,-520.9,0.00013698,2]
[424919542,1781272241000,-500.0,0.00013698,2]
[424919567,1781272241000,-520.9,0.00013698,2]
[424919558,1781272241000,-500.0,0.00013698,2]
[424919561,1781272241000,-520.9,0.00013698,2]
[424919560,1781272241000,-500.0,0.00013698,2]
[424919565,1781272241000,-520.9,0.00013698,2]
[424919568,1781272241000,-500.0,0.00013698,2]
[424919569,1781272241000,-520.9,0.00013698,2]
[424919559,1781272241000,-520.9,0.00013698,2]
[424919564,1781272241000,-520.9,0.00013698,2]
[424919563,1781272241000,-500.0,0.00013698,2]
[424919566,1781272241000,-500.0,0.00013698,2]
[424919570,1781272241000,-500.0,0.00013698,2]
[424919510,1781272241000,-500.0,0.00013698,2]
[424919562,1781272241000,-500.0,0.00013698,2]
[424919544,1781272241000,-500.0,0.00013698,2]
[424919552,1781272241000,-500.0,0.00013698,2]
[424919541,1781272241000,-500.0,0.00013698,2]
[424919521,1781272241000,-500.0,0.00013698,2]
[424919543,1781272241000,-500.0,0.00013698,2]
[424919523,1781272241000,-500.0,0.00013698,2]
[424919522,1781272241000,-500.0,0.00013698,2]
[424919513,1781272241000,-500.0,0.00013698,2]
[424919515,1781272241000,-500.0,0.00013698,2]
[424919519,1781272241000,-500.0,0.00013698,2]
[424919517,1781272241000,-500.0,0.00013698,2]
[424919516,1781272241000,-500.0,0.00013698,2]
[424919518,1781272241000,-500.0,0.00013698,2]
[424919514,1781272241000,-500.0,0.00013698,2]
[424919524,1781272241000,-500.0,0.00013698,2]
[424919526,1781272241000,-325.58534652,0.00013698,2]
[424919527,1781272241000,-500.0,0.00013698,2]
[424919520,1781272241000,-500.0,0.00013698,2]
[424919539,1781272241000,-500.0,0.00013698,2]
[424919540,1781272241000,-500.0,0.00013698,2]
[424919528,1781272241000,-500.0,0.00013698,2]
[424919537,1781272241000,-500.0,0.00013698,2]
[424919538,1781272241000,-500.0,0.00013698,2]
[424919532,1781272241000,-500.0,0.00013698,2]
[424919531,1781272241000,-500.0,0.00013698,2]
[424919530,1781272241000,-500.0,0.00013698,2]
[424919535,1781272241000,-500.0,0.00013698,2]
[424919533,1781272241000,-500.0,0.00013698,2]
[424919525,1781272241000,-500.0,0.00013698,2]
[424919529,1781272241000,-500.0,0.00013698,2]
[424919536,1781272241000,-500.0,0.00013698,2]
[424919616,1781272242000,-2056.87909282,0.00014647,2]
[424919614,1781272242000,-307.97603717,0.00014647,2]
[424919612,1781272242000,-449.92,0.00014625,2]
[424919615,1781272242000,-500.0,0.00014647,2]
[424919607,1781272242000,-45029.84925055,0.00014439,2]
[424919603,1781272242000,-611.46,0.00013987,2]
[424919609,1781272242000,-500.0,0.00014469,2]
[424919602,1781272242000,-263.475077,0.00013961,2]
[424919599,1781272242000,-500.0,0.00013699,2]
[424919595,1781272242000,-500.0,0.00013698,2]
[424919619,1781272242000,-1500.0,0.0001486,2]
[424919611,1781272242000,-300.05,0.00014625,2]
[424919610,1781272242000,-500.0,0.00014469,2]
[424919630,1781272242000,-186.789216,0.000157,2]
[424919608,1781272242000,-500.0,0.00014469,2]
[424919613,1781272242000,-300.05,0.00014626,2]
[424919618,1781272242000,-8457.02699268,0.0001466,2]
[424919622,1781272242000,-150.0,0.00015068,2]
[424919620,1781272242000,-199.77528914,0.00014946,2]
[424919624,1781272242000,-792.78,0.00015382,2]
[424919621,1781272242000,-850.05,0.00015,2]
[424919626,1781272242000,-45029.84925055,0.00015399,2]
[424919628,1781272242000,-1252.0,0.00015492,2]
[424919629,1781272242000,-1013.41913371,0.000157,2]
[424919623,1781272242000,-489.22,0.00015068,2]
[424919625,1781272242000,-611.46,0.00015386,2]
[424919606,1781272242000,-300.05,0.00014217,2]
[424919617,1781272242000,-3204.61397906,0.0001466,2]
[424919597,1781272242000,-200.0,0.00013699,2]
[424919572,1781272242000,-500.0,0.00013698,2]
[424919598,1781272242000,-151.0,0.00013699,2]
[424919580,1781272242000,-500.0,0.00013698,2]
[424919627,1781272242000,-1555.5,0.00015408,2]
[424919581,1781272242000,-500.0,0.00013698,2]
[424919571,1781272242000,-520.9,0.00013698,2]
[424919573,1781272242000,-520.9,0.00013698,2]
[424919574,1781272242000,-500.0,0.00013698,2]
[424919576,1781272242000,-500.0,0.00013698,2]
[424919575,1781272242000,-500.0,0.00013698,2]
[424919579,1781272242000,-500.0,0.00013698,2]
[424919578,1781272242000,-500.0,0.00013698,2]
[424919577,1781272242000,-500.0,0.00013698,2]
[424919584,1781272242000,-500.0,0.00013698,2]
[424919582,1781272242000,-500.0,0.00013698,2]
[424919585,1781272242000,-500.0,0.00013698,2]
[424919587,1781272242000,-500.0,0.00013698,2]
[424919588,1781272242000,-500.0,0.00013698,2]
[424919586,1781272242000,-500.0,0.00013698,2]
[424919593,1781272242000,-500.0,0.00013698,2]
[424919589,1781272242000,-500.0,0.00013698,2]
[424919594,1781272242000,-500.0,0.00013698,2]
[424919591,1781272242000,-500.0,0.00013698,2]
[424919583,1781272242000,-500.0,0.00013698,2]
[424919590,1781272242000,-500.0,0.00013698,2]
[424919596,1781272242000,-2500.0,0.00013699,2]
[424919605,1781272242000,-736.0,0.00014123,2]
[424919601,1781272242000,-359.07,0.000137,2]
[424919604,1781272242000,-792.78,0.000141,2]
[424919600,1781272242000,-500.0,0.00013699,2]
[424919631,1781272242000,-500.0,0.00015744,2]
[424919592,1781272242000,-500.0,0.00013698,2]
[424919635,1781272242000,-186.789216,0.000159,2]
[424919660,1781272242000,-207.892926,0.00016438,2]
[424919664,1781272242000,-518.64941815,0.00016492,2]
[424919659,1781272242000,-500.0,0.00016435,2]
[424919679,1781272242000,-518.64941815,0.00016947,2]
[424919680,1781272242000,-518.64941815,0.00016996,2]
[424919670,1781272242000,-518.64941815,0.00016762,2]
[424919671,1781272242000,-611.46,0.00016785,2]
[424919673,1781272242000,-518.64941815,0.00016801,2]
[424919669,1781272242000,-168.44,0.00016712,2]
[424919672,1781272242000,-175.51017956,0.00016799,2]
[424919674,1781272242000,-518.64941815,0.00016851,2]
[424919675,1781272242000,-150.0,0.00016885,2]
[424919678,1781272242000,-518.64941815,0.00016943,2]
[424919677,1781272242000,-518.64941815,0.00016906,2]
[424919682,1781272242000,-1972.0,0.00017001,2]
[424919681,1781272242000,-224.087549,0.00016997,2]
[424919683,1781272242000,-518.64941815,0.00017009,2]
[424919634,1781272242000,-1013.41913371,0.000159,2]
[424919693,1781272242000,-518.64941815,0.00017245,2]
[424919690,1781272242000,-518.64941815,0.00017213,2]
[424919686,1781272242000,-518.64941815,0.00017033,2]
[424919685,1781272242000,-518.64941815,0.00017031,2]
[424919695,1781272242000,-518.64941815,0.00017288,2]
[424919688,1781272242000,-518.64941815,0.00017043,2]
[424919689,1781272242000,-518.64941815,0.00017062,2]
[424919687,1781272242000,-518.64941815,0.00017036,2]
[424919697,1781272242000,-45029.84925055,0.00017319,2]
[424919662,1781272242000,-489.22,0.00016438,2]
[424919663,1781272242000,-518.64941815,0.00016478,2]
[424919684,1781272242000,-518.64941815,0.00017022,2]
[424919666,1781272242000,-518.64941815,0.00016567,2]
[424919661,1781272242000,-1215.0,0.00016438,2]
[424919633,1781272242000,-2843.77201288,0.000158,5]
[424919632,1781272242000,-2000.00065603,0.00015744,2]
[424919636,1781272242000,-1013.41913371,0.00016,2]
[424919637,1781272242000,-186.789216,0.00016,2]
[424919643,1781272242000,-168.661739,0.00016187,2]
[424919640,1781272242000,-8291.52,0.00016116,2]
[424919639,1781272242000,-266.528012,0.00016107,2]
[424919641,1781272242000,-160.0,0.00016187,2]
[424919638,1781272242000,-160.0,0.00016107,2]
[424919645,1781272242000,-186.789216,0.000162,2]
[424919648,1781272242000,-12835.84,0.000162,2]
[424919646,1781272242000,-359.07,0.000162,2]
[424919647,1781272242000,-25734.68,0.000162,2]
[424919642,1781272242000,-164.330869,0.00016187,2]
[424919644,1781272242000,-1013.41913371,0.000162,2]
[424919668,1781272242000,-201.02035911,0.00016688,2]
[424919655,1781272242000,-518.64941815,0.00016311,2]
[424919658,1781272242000,-518.64941815,0.000164,2]
[424919667,1781272242000,-518.64941815,0.00016578,2]
[424919665,1781272242000,-518.64941815,0.00016497,2]
[424919656,1781272242000,-518.64941815,0.00016313,2]
[424919657,1781272242000,-45029.84925055,0.00016359,2]
[424919649,1781272242000,-298.04,0.000162,2]
[424919654,1781272242000,-520.9,0.0001631,2]
[424919651,1781272242000,-1013.41913371,0.000163,2]
[424919653,1781272242000,-500.0,0.0001631,2]
[424919650,1781272242000,-518.64941815,0.00016295,2]
[424919652,1781272242000,-669.46,0.0001631,2]
[424919725,1781272243000,-1676.04972,0.000193,2]
[424919729,1781272243000,-22422.43006691,0.00019339,7]
[424919721,1781272243000,-505.0,0.00019033,2]
[424919724,1781272243000,-161.8179842,0.00019178,2]
[424919723,1781272243000,-22318.22803693,0.0001916,2]
[424919727,1781272243000,-500.0,0.00019338,2]
[424919726,1781272243000,-500.0,0.00019338,2]
[424919728,1781272243000,-500.0,0.00019338,2]
[424919735,1781272243000,-1676.04972,0.000197,2]
[424919734,1781272243000,-1676.04972,0.000195,2]
[424919732,1781272243000,-250.0,0.00019339,7]
[424919731,1781272243000,-706598.5049125,0.00019339,2]
[424919730,1781272243000,-9319.2682598,0.00019339,2]
[424919737,1781272243000,-191.49836452,0.0001975,2]
[424919736,1781272243000,-544.04681793,0.00019748,3]
[424919742,1781272243000,-234.051907,0.00019911,7]
[424919722,1781272243000,-1676.04972,0.000191,2]
[424919733,1781272243000,-602.0,0.00019452,2]
[424919720,1781272243000,-359.07,0.00019,2]
[424919702,1781272243000,-505.0,0.00018,2]
[424919718,1781272243000,-1676.04972,0.000189,2]
[424919708,1781272243000,-2155.17,0.00018356,2]
[424919700,1781272243000,-440.58496239,0.00018,2]
[424919699,1781272243000,-231.528029,0.00017718,2]
[424919703,1781272243000,-200.0,0.00018054,2]
[424919701,1781272243000,-1676.04972,0.00018,2]
[424919707,1781272243000,-37550.44576352,0.00018348,2]
[424919704,1781272243000,-14919.19805853,0.0001816,2]
[424919706,1781272243000,-1676.04972,0.000182,2]
[424919716,1781272243000,-1676.04972,0.000187,2]
[424919705,1781272243000,-440.58496239,0.000182,2]
[424919710,1781272243000,-1676.04972,0.000184,2]
[424919712,1781272243000,-440.58496239,0.000185,2]
[424919714,1781272243000,-231.836288,0.00018561,7]
[424919711,1781272243000,-1215.0,0.0001841,2]
[424919713,1781272243000,-1676.04972,0.000185,2]
[424919715,1781272243000,-440.58496239,0.000187,2]
[424919719,1781272243000,-195.0,0.00018953,3]
[424919717,1781272243000,-164.673383,0.00018899,7]
[424919709,1781272243000,-440.58496239,0.000184,2]
[424919739,1781272243000,-1600.0,0.000199,7]
[424919744,1781272243000,-669.46,0.00019943,2]
[424919740,1781272243000,-168.856221,0.00019907,7]
[424919764,1781272243000,-293.70129372,0.00019943,2]
[424919763,1781272243000,-520.9,0.00019943,2]
[424919765,1781272243000,-520.9,0.00019943,2]
[424919767,1781272243000,-1059897.7573688,0.00019944,2]
[424919766,1781272243000,-390.88,0.00019943,2]
[424919770,1781272243000,-200.0,0.0002,2]
[424919772,1781272243000,-221.97254349,0.0002,2]
[424919771,1781272243000,-1930.506853,0.0002,2]
[424919773,1781272243000,-10000.0,0.0002,2]
[424919775,1781272243000,-304.0,0.0002,2]
[424919774,1781272243000,-357.0,0.0002,2]
[424919781,1781272243000,-809.0,0.0002,2]
[424919778,1781272243000,-2212.0,0.0002,2]
[424919779,1781272243000,-398.0,0.0002,2]
[424919777,1781272243000,-936.0,0.0002,2]
[424919776,1781272243000,-177.0,0.0002,2]
[424919746,1781272243000,-669.46,0.00019943,2]
[424919762,1781272243000,-500.0,0.00019943,2]
[424919761,1781272243000,-520.9,0.00019943,2]
[424919780,1781272243000,-244.0,0.0002,2]
[424919759,1781272243000,-520.9,0.00019943,2]
[424919741,1781272243000,-458.718134,0.00019907,7]
[424919769,1781272243000,-5295.94194067,0.00019944,2]
[424919745,1781272243000,-669.46,0.00019943,2]
[424919738,1781272243000,-10000.0,0.00019844,2]
[424919747,1781272243000,-669.46,0.00019943,2]
[424919749,1781272243000,-295.29064169,0.00019943,2]
[424919750,1781272243000,-500.0,0.00019943,2]
[424919752,1781272243000,-500.0,0.00019943,2]
[424919748,1781272243000,-669.46,0.00019943,2]
[424919743,1781272243000,-731.09794975,0.00019934,2]
[424919753,1781272243000,-496.9,0.00019943,2]
[424919751,1781272243000,-500.0,0.00019943,2]
[424919758,1781272243000,-500.0,0.00019943,2]
[424919754,1781272243000,-500.0,0.00019943,2]
[424919756,1781272243000,-500.0,0.00019943,2]
[424919757,1781272243000,-500.0,0.00019943,2]
[424919768,1781272243000,-5158.9177338,0.00019944,2]
[424919755,1781272243000,-500.0,0.00019943,2]
[424919760,1781272243000,-520.9,0.00019943,2]
[424919833,1781272244000,-1930.506853,0.00022,2]
[424919823,1781272244000,-669.46,0.00021366,2]
[424919822,1781272244000,-792.01,0.00021273,2]
[424919825,1781272244000,-520.9,0.00021366,2]
[424919842,1781272244000,-329.0,0.00022,2]
[424919818,1781272244000,-915.36,0.00021019,2]
[424919816,1781272244000,-213.0,0.00021,2]
[424919819,1781272244000,-505.0,0.000211,4]
[424919815,1781272244000,-178.0,0.00021,2]
[424919831,1781272244000,-150.0,0.00021918,2]
[424919812,1781272244000,-244.0,0.00021,2]
[424919817,1781272244000,-1852.0,0.00021,2]
[424919827,1781272244000,-359.07,0.000216,2]
[424919837,1781272244000,-936.0,0.00022,2]
[424919826,1781272244000,-175.462957,0.00021599,7]
[424919829,1781272244000,-2000.0,0.00021869,7]
[424919832,1781272244000,-500.0,0.00022,3]
[424919828,1781272244000,-2550.17,0.000217,7]
[424919830,1781272244000,-5000.0,0.00021918,2]
[424919836,1781272244000,-177.0,0.00022,2]
[424919845,1781272244000,-837.99,0.00022,2]
[424919838,1781272244000,-2212.0,0.00022,2]
[424919834,1781272244000,-357.0,0.00022,2]
[424919835,1781272244000,-304.0,0.00022,2]
[424919841,1781272244000,-809.0,0.00022,2]
[424919811,1781272244000,-398.0,0.00021,2]
[424919824,1781272244000,-500.0,0.00021366,2]
[424919813,1781272244000,-809.0,0.00021,2]
[424919788,1781272244000,-37550.44576352,0.00020259,2]
[424919809,1781272244000,-6381.49439617,0.00021,2]
[424919783,1781272244000,-178.0,0.0002,2]
[424919793,1781272244000,-500.0,0.0002058,2]
[424919794,1781272244000,-520.9,0.0002058,2]
[424919795,1781272244000,-46062.5208916,0.00020581,2]
[424919782,1781272244000,-329.0,0.0002,2]
[424919786,1781272244000,-602.0,0.00020136,2]
[424919792,1781272244000,-669.46,0.0002058,2]
[424919796,1781272244000,-206437.8964322,0.00020581,2]
[424919784,1781272244000,-1852.0,0.0002,2]
[424919790,1781272244000,-1215.0,0.00020381,2]
[424919785,1781272244000,-505.0,0.00020067,3]
[424919798,1781272244000,-192.940024,0.00020939,2]
[424919814,1781272244000,-329.0,0.00021,2]
[424919797,1781272244000,-602.0,0.00020821,2]
[424919801,1781272244000,-15000.0,0.00021,2]
[424919799,1781272244000,-200.0,0.00021,2]
[424919803,1781272244000,-15000.0,0.00021,2]
[424919800,1781272244000,-1930.506853,0.00021,2]
[424919807,1781272244000,-177.0,0.00021,2]
[424919802,1781272244000,-6111.0,0.00021,2]
[424919805,1781272244000,-357.0,0.00021,2]
[424919804,1781272244000,-6111.0,0.00021,2]
[424919806,1781272244000,-304.0,0.00021,2]
[424919810,1781272244000,-2212.0,0.00021,2]
[424919820,1781272244000,-1229.67,0.00021273,2]
[424919821,1781272244000,-12648.06,0.00021273,2]
[424919808,1781272244000,-936.0,0.00021,2]
[424919839,1781272244000,-398.0,0.00022,2]
[424919865,1781272244000,-2212.0,0.00023,2]
[424919840,1781272244000,-244.0,0.00022,2]
[424919871,1781272244000,-1852.0,0.00023,2]
[424919880,1781272244000,-1148.61238259,0.00023378,2]
[424919872,1781272244000,-150.0,0.00023014,2]
[424919878,1781272244000,-1068.11,0.00023378,2]
[424919882,1781272244000,-175.62,0.00023425,2]
[424919892,1781272244000,-398.0,0.00024,2]
[424919881,1781272244000,-175.62,0.00023425,2]
[424919884,1781272244000,-289.0,0.00023744,2]
[424919883,1781272244000,-359.07,0.000236,7]
[424919885,1781272244000,-458.440797,0.00023956,7]
[424919890,1781272244000,-936.0,0.00024,2]
[424919891,1781272244000,-2212.0,0.00024,2]
[424919875,1781272244000,-505.0,0.00023167,6]
[424919886,1781272244000,-1930.506853,0.00024,2]
[424919888,1781272244000,-304.0,0.00024,2]
[424919887,1781272244000,-357.0,0.00024,2]
[424919894,1781272244000,-244.0,0.00024,2]
[424919893,1781272244000,-2668.0,0.00024,7]
[424919896,1781272244000,-329.0,0.00024,2]
[424919895,1781272244000,-809.0,0.00024,2]
[424919897,1781272244000,-178.0,0.00024,2]
[424919898,1781272244000,-1852.0,0.00024,2]
[424919901,1781272244000,-505.0,0.000242,7]
[424919902,1781272244000,-1215.0,0.00024324,2]
[424919899,1781272244000,-37550.44576352,0.00024083,2]
[424919843,1781272244000,-178.0,0.00022,2]
[424919889,1781272244000,-177.0,0.00024,2]
[424919876,1781272244000,-150.0,0.0002326,21]
[424919900,1781272244000,-150.0,0.00024164,2]
[424919877,1781272244000,-1030.0,0.00023378,2]
[424919879,1781272244000,-1107.63007,0.00023378,2]
[424919844,1781272244000,-1852.0,0.00022,2]
[424919846,1781272244000,-1358.0,0.00022093,2]
[424919847,1781272244000,-402.0,0.00022093,2]
[424919848,1781272244000,-1228.524,0.00022093,2]
[424919852,1781272244000,-179.79776022,0.00022407,2]
[424919850,1781272244000,-37550.44576352,0.00022171,2]
[424919851,1781272244000,-1215.0,0.00022353,2]
[424919853,1781272244000,-1405.37611156,0.00022407,2]
[424919854,1781272244000,-540.04275286,0.00022407,2]
[424919855,1781272244000,-540.04275286,0.00022407,2]
[424919856,1781272244000,-540.04275286,0.00022407,2]
[424919857,1781272244000,-3486.27378022,0.0002245,2]
[424919849,1781272244000,-505.0,0.00022133,5]
[424919862,1781272244000,-304.0,0.00023,2]
[424919859,1781272244000,-501.91,0.00022466,2]
[424919873,1781272244000,-425.00166298,0.00023076,2]
[424919870,1781272244000,-178.0,0.00023,2]
[424919868,1781272244000,-809.0,0.00023,2]
[424919864,1781272244000,-936.0,0.00023,2]
[424919866,1781272244000,-398.0,0.00023,2]
[424919867,1781272244000,-244.0,0.00023,2]
[424919863,1781272244000,-177.0,0.00023,2]
[424919869,1781272244000,-329.0,0.00023,2]
[424919861,1781272244000,-357.0,0.00023,2]
[424919860,1781272244000,-1930.506853,0.00023,2]
[424919874,1781272244000,-30197.3562,0.0002316,7]
[424919858,1781272244000,-440.05204332,0.0002245,2]
[424919933,1781272245000,-1869.0,0.00025,2]
[424919936,1781272245000,-382.0,0.00025093,2]
[424919931,1781272245000,-342.0,0.00025,2]
[424919937,1781272245000,-1227.0,0.00025093,2]
[424919930,1781272245000,-818.9981003,0.00025,2]
[424919938,1781272245000,-290.0,0.00025114,2]
[424919932,1781272245000,-188.07711541,0.00025,2]
[424919935,1781272245000,-1358.0,0.00025093,2]
[424919950,1781272245000,-564.0,0.00025978,2]
[424919934,1781272245000,-500.0,0.00025072,14]
[424919946,1781272245000,-792.01,0.00025786,2]
[424919943,1781272245000,-192.940024,0.00025771,14]
[424919939,1781272245000,-200.0,0.00025231,2]
[424919942,1781272245000,-425.00166298,0.00025512,2]
[424919941,1781272245000,-150.0,0.00025373,2]
[424919944,1781272245000,-1229.67,0.00025786,2]
[424919945,1781272245000,-12648.06,0.00025786,2]
[424919948,1781272245000,-555.0,0.00025921,2]
[424919949,1781272245000,-511.0,0.00025921,2]
[424919929,1781272245000,-251.0,0.00025,2]
[424919947,1781272245000,-359.07,0.000258,7]
[424919940,1781272245000,-505.0,0.00025233,8]
[424919927,1781272245000,-2220.0,0.00025,2]
[424919912,1781272245000,-800.0,0.00024836,9]
[424919925,1781272245000,-192.0,0.00025,2]
[424919951,1781272245000,-37550.44576352,0.00025995,2]
[424919903,1781272245000,-3009.32,0.00024658,2]
[424919904,1781272245000,-1000.0,0.00024658,2]
[424919905,1781272245000,-748.84,0.00024658,2]
[424919908,1781272245000,-800.0,0.00024836,9]
[424919907,1781272245000,-800.0,0.00024836,9]
[424919913,1781272245000,-800.0,0.00024836,9]
[424919909,1781272245000,-800.0,0.00024836,9]
[424919911,1781272245000,-800.0,0.00024836,9]
[424919906,1781272245000,-837.99,0.00024744,7]
[424919924,1781272245000,-305.0,0.00025,2]
[424919910,1781272245000,-800.0,0.00024836,9]
[424919915,1781272245000,-800.0,0.00024836,9]
[424919917,1781272245000,-800.0,0.00024836,9]
[424919916,1781272245000,-800.0,0.00024836,9]
[424919918,1781272245000,-800.0,0.00024836,9]
[424919919,1781272245000,-800.0,0.00024836,9]
[424919920,1781272245000,-800.0,0.00024836,9]
[424919922,1781272245000,-180.23680031,0.00024908,2]
[424919923,1781272245000,-376.59594428,0.00025,2]
[424919921,1781272245000,-313.02685316,0.00024836,9]
[424919926,1781272245000,-955.0,0.00025,2]
[424919914,1781272245000,-800.0,0.00024836,9]
[424919953,1781272245000,-5158.9177338,0.00026141,2]